fUSD/lending_fUSD_20250125
["ID","MTS","AMOUNT","RATE_DAILY","PERIOD"]
[350308784,1737780688185,-600.69,0.00019178,2]
[350308785,1737780688194,-2002.96,0.00019178,2]
[350308786,1737780688203,-1031.41,0.00019178,2]
[350308787,1737780688213,-155.907894,0.00019178,2]
[350308788,1737780688222,-1165.45,0.00019178,2]
[350308789,1737780688232,-811.7,0.00019178,2]
[350308790,1737780688243,-563.79,0.00019178,2]
[350308791,1737780688252,-2254.04,0.00019178,2]
[350308792,1737780688262,-810.68,0.00019178,2]
[350308793,1737780688271,-500.0,0.00019178,2]
[350308794,1737780688280,-768.27,0.00019178,2]
[350308795,1737780688289,-1676.36,0.00019178,2]
[350308796,1737780688298,-900.82,0.00019178,2]
[350308797,1737780688307,-1204.31,0.00019178,2]
[350308798,1737780688317,-1031.26,0.00019178,2]
[350308799,1737780688326,-500.0,0.00019178,2]
[350308800,1737780688337,-2605.78,0.00019178,2]
[350308801,1737780688346,-3652.55,0.00019178,2]
[350308802,1737780688356,-855.5,0.00019178,2]
[350308803,1737780688365,-887.32,0.00019178,2]
[350308804,1737780688374,-878.97,0.00019178,2]
[350308805,1737780688383,-2371.04,0.00019178,2]
[350308806,1737780688392,-1435.2,0.00019178,2]
[350308807,1737780688402,-1256.16,0.00019178,2]
[350308808,1737780688412,-859.23,0.00019178,2]
[350308809,1737780688421,-631.62,0.00019178,2]
[350308810,1737780688431,-2214.61,0.00019178,2]
[350308811,1737780688441,-1499.56,0.00019178,2]
[350308812,1737780688450,-501.66,0.00019178,2]
[350308813,1737780688459,-764.1,0.00019178,2]
[350308814,1737780688469,-497.44147553,0.00019178,2]
[350308815,1737780688478,-4434.4,0.00019178,2]
[350308816,1737780688490,-880.26,0.00019178,2]
[350308817,1737780688500,-4770.01,0.00019178,2]
[350308818,1737780688510,-1286.41,0.00019178,2]
[350308819,1737780688520,-2525.92,0.00019178,2]
[350308820,1737780688530,-617.18,0.00019178,2]
[350308821,1737780688544,-1248.95,0.00019178,2]
[350308822,1737780688554,-1045.55,0.00019178,2]
[350308823,1737780688562,-912.61,0.00019178,2]
[350308824,1737780688572,-2347.72,0.00019178,2]
[350308825,1737780688583,-797.89,0.00019178,2]
[350308826,1737780688592,-2437.51,0.00019178,2]
[350308827,1737780688601,-1162.81,0.00019178,2]
[350308828,1737780688611,-729.49,0.00019178,2]
[350308829,1737780688620,-1527.98,0.00019178,2]
[350308830,1737780688630,-1904.23,0.00019178,2]
[350308831,1737780688639,-745.81,0.00019178,2]
[350308832,1737780688649,-596.99,0.00019178,2]
[350308833,1737780688659,-2478.55,0.00019178,2]
[350308834,1737780688669,-1748.83,0.00019178,2]
[350308835,1737780688679,-3070.29,0.00019178,2]
[350308836,1737780688688,-717.53,0.00019178,2]
[350308837,1737780688698,-893.72,0.00019178,2]
[350308838,1737780688709,-4503.34,0.00019178,2]
[350308839,1737780688718,-3662.54,0.00019178,2]
[350308840,1737780688728,-660.41,0.00019178,2]
[350308841,1737780688739,-830.75,0.00019178,2]
[350308842,1737780688748,-1628.53,0.00019178,2]
[350308843,1737780688758,-2784.54,0.00019178,2]
[350308844,1737780688773,-2066.06,0.00019178,2]
[350308845,1737780688783,-541.81,0.00019178,2]
[350308846,1737780688793,-735.03,0.00019178,2]
[350308847,1737780688906,-1358.49,0.00019178,2]
[350308848,1737780688916,-1231.6,0.00019178,2]
[350308849,1737780688926,-1298.51,0.00019178,2]
[350308850,1737780688936,-2450.52,0.00019178,2]
[350308851,1737780688945,-659.41,0.00019178,2]
[350308852,1737780688955,-3853.39,0.00019178,2]
[350308853,1737780688964,-964.84,0.00019178,2]
[350308854,1737780688973,-1262.53,0.00019178,2]
[350308855,1737780688983,-1240.26,0.00019178,2]
[350308856,1737780688994,-883.14,0.00019178,2]
[350308857,1737780689003,-783.95,0.00019178,2]
[350308858,1737780689013,-957.39,0.00019178,2]
[350308859,1737780689022,-791.69,0.00019178,2]
[350308860,1737780689031,-854.55,0.00019178,2]
[350308861,1737780689041,-1363.36,0.00019178,2]
[350308862,1737780689050,-500.0,0.00019178,2]
[350308863,1737780689060,-382.11576994,0.00019178,2]
[350308864,1737780689070,-3755.43,0.00019178,2]
[350308865,1737780689079,-783.97,0.00019178,2]
[350308866,1737780689089,-1669.05,0.00019178,2]
[350308867,1737780689099,-648.38,0.00019178,2]
[350308868,1737780689109,-880.32,0.00019178,2]
[350308869,1737780689118,-783.6,0.00019178,2]
[350308870,1737780689129,-541.22,0.00019178,2]
[350308871,1737780689138,-931.29,0.00019183,2]
[350308872,1737780689148,-54529.36381126,0.00019215,2]
[350308873,1737780689157,-1225.34,0.0001922,2]
[350308874,1737780689167,-631.42,0.00019239,2]
[350308875,1737780689176,-655.57,0.00019239,2]
[350308876,1737780689186,-883.17,0.00019239,2]
[350308877,1737780689196,-1126.94,0.00019239,2]
[350308878,1737780689206,-1212.78,0.00019239,2]
[350308879,1737780689215,-3128.26,0.00019239,2]
[350308880,1737780689224,-6082.89,0.00019239,2]
[350308881,1737780689235,-996.63,0.00019239,2]
[350308882,1737780689244,-770.51,0.00019239,2]
[350308883,1737780689253,-2173.77,0.00019239,2]
[350308884,1737780689262,-788.44,0.00019239,2]
[350308885,1737780689271,-1064.43,0.00019239,2]
[350308886,1737780689280,-1714.38,0.00019239,2]
[350308887,1737780689289,-1311.29,0.00019239,2]
[350308888,1737780689298,-544.74,0.00019239,2]
[350308889,1737780689308,-2088.26,0.00019239,2]
[350308890,1737780689318,-2022.35,0.00019239,2]
[350308891,1737780689327,-1000.0,0.00019248,2]
[350308892,1737780689336,-592.79,0.00019314,2]
[350308893,1737780689346,-585.62,0.00019314,2]
[350308894,1737780689355,-694.69,0.00019314,2]
[350308895,1737780689364,-273.30714778,0.00019315,2]
[350308896,1737780689374,-500.0,0.00019315,2]
[350308897,1737780689383,-500.0,0.00019315,2]
[350308898,1737780689392,-552.37,0.00019315,2]
[350308899,1737780689402,-746.74,0.00019315,2]
[350308900,1737780689411,-623.71,0.00019315,2]
[350308901,1737780689420,-560.1,0.00019315,2]
[350308902,1737780689430,-500.0,0.00019315,2]
[350308903,1737780689439,-156.187301,0.00019315,2]
[350308904,1737780689448,-531.14,0.00019315,2]
[350308905,1737780689458,-602.85,0.00019315,2]
[350308906,1737780689467,-594.18,0.00019315,2]
[350308907,1737780689476,-560.27,0.00019315,2]
[350308908,1737780689486,-562.5,0.00019315,2]
[350308909,1737780689495,-567.73,0.00019315,2]
[350308910,1737780689505,-550.16,0.00019315,2]
[350308911,1737780689515,-226.15067476,0.00019315,2]
[350308912,1737780689524,-614.67,0.00019315,2]
[350308913,1737780689537,-500.0,0.00019315,2]
[350308914,1737780689547,-500.0,0.00019315,2]
[350308915,1737780689556,-666.81,0.00019315,2]
[350308916,1737780689565,-506.56,0.00019315,2]
[350308917,1737780689576,-594.67,0.00019315,2]
[350308918,1737780689586,-589.07,0.00019315,2]
[350308919,1737780689596,-620.52472602,0.00019315,2]
[350308920,1737780689607,-500.0,0.00019315,2]
[350308921,1737780689617,-554.24,0.00019315,2]
[350308922,1737780689628,-914.03,0.00019315,2]
[350308923,1737780689637,-566.01,0.00019315,2]
[350308924,1737780689647,-728.54,0.00019315,2]
[350308925,1737780689656,-621.9,0.00019315,2]
[350308926,1737780689666,-2348.33,0.00019315,2]
[350308927,1737780689676,-3825.28,0.00019315,2]
[350308928,1737780689686,-1272.56,0.00019315,2]
[350308929,1737780689696,-903.33,0.00019315,2]
[350308930,1737780689706,-600.69,0.00019315,2]
[350308931,1737780689715,-2002.96,0.00019315,2]
[350308932,1737780689724,-1031.41,0.00019315,2]
[350308933,1737780689734,-1165.45,0.00019315,2]
[350308934,1737780689744,-811.7,0.00019315,2]
[350308935,1737780689754,-563.79,0.00019315,2]
[350308936,1737780689763,-2254.04,0.00019315,2]
[350308937,1737780689772,-810.68,0.00019315,2]
[350308938,1737780689781,-500.0,0.00019315,2]
[350308939,1737780689790,-768.27,0.00019315,2]
[350308940,1737780689800,-900.82,0.00019315,2]
[350308941,1737780689810,-1676.36,0.00019315,2]
[350308942,1737780689819,-1204.31,0.00019315,2]
[350308943,1737780689830,-1031.26,0.00019315,2]
[350308944,1737780689839,-500.0,0.00019315,2]
[350308945,1737780689848,-2605.78,0.00019315,2]
[350308946,1737780689858,-3652.55,0.00019315,2]
[350308947,1737780689868,-855.5,0.00019315,2]
[350308948,1737780689877,-887.32,0.00019315,2]
[350308949,1737780689887,-878.97,0.00019315,2]
[350308950,1737780689896,-2371.04,0.00019315,2]
[350308951,1737780689906,-1435.2,0.00019315,2]
[350308952,1737780689916,-1256.16,0.00019315,2]
[350308953,1737780689925,-859.23,0.00019315,2]
[350308954,1737780689935,-631.62,0.00019315,2]
[350308955,1737780689944,-2214.61,0.00019315,2]
[350308956,1737780689954,-1499.56,0.00019315,2]
[350308957,1737780689963,-501.66,0.00019315,2]
[350308958,1737780689972,-764.1,0.00019315,2]
[350308959,1737780689982,-4434.4,0.00019315,2]
[350308960,1737780689994,-880.26,0.00019315,2]
[350308961,1737780690004,-4770.01,0.00019315,2]
[350308962,1737780690013,-1286.41,0.00019315,2]
[350308963,1737780690022,-2525.92,0.00019315,2]
[350308964,1737780690031,-617.18,0.00019315,2]
[350308965,1737780690042,-1248.95,0.00019315,2]
[350308966,1737780690051,-1045.55,0.00019315,2]
[350308967,1737780690060,-912.61,0.00019315,2]
[350308968,1737780690070,-2347.72,0.00019315,2]
[350308969,1737780690079,-797.89,0.00019315,2]
[350308970,1737780690089,-2437.51,0.00019315,2]
[350308971,1737780690099,-1162.81,0.00019315,2]
[350308972,1737780690108,-729.49,0.00019315,2]
[350308973,1737780690117,-1527.98,0.00019315,2]
[350308974,1737780690127,-1904.23,0.00019315,2]
[350308975,1737780690136,-745.81,0.00019315,2]
[350308976,1737780690145,-596.99,0.00019315,2]
[350308977,1737780690155,-2478.55,0.00019315,2]
[350308978,1737780690164,-1748.83,0.00019315,2]
[350308979,1737780690174,-3070.29,0.00019315,2]
[350308980,1737780690183,-717.53,0.00019315,2]
[350308981,1737780690192,-893.72,0.00019315,2]
[350308982,1737780690201,-4503.34,0.00019315,2]
[350308983,1737780690211,-3662.54,0.00019315,2]
[350308984,1737780690220,-660.41,0.00019315,2]
[350308985,1737780690230,-830.75,0.00019315,2]
[350308986,1737780690241,-1628.53,0.00019315,2]
[350308987,1737780690250,-2784.54,0.00019315,2]
[350308988,1737780690259,-2066.06,0.00019315,2]
[350308989,1737780690269,-541.81,0.00019315,2]
[350308990,1737780690279,-735.03,0.00019315,2]
[350308991,1737780690288,-1358.49,0.00019315,2]
[350308992,1737780690297,-1231.6,0.00019315,2]
[350308993,1737780690306,-1298.51,0.00019315,2]
[350308994,1737780690316,-2450.52,0.00019315,2]
[350308995,1737780690326,-3853.39,0.00019315,2]
[350308996,1737780690335,-659.41,0.00019315,2]
[350308997,1737780690344,-964.84,0.00019315,2]
[350308998,1737780690353,-1262.53,0.00019315,2]
[350308999,1737780690363,-1240.26,0.00019315,2]
[350309000,1737780690373,-883.14,0.00019315,2]
[350309001,1737780690383,-783.95,0.00019315,2]
[350309002,1737780690393,-957.39,0.00019315,2]
[350309003,1737780690402,-791.69,0.00019315,2]
[350309004,1737780690412,-854.55,0.00019315,2]
[350309005,1737780690422,-1363.36,0.00019315,2]
[350309006,1737780690432,-500.0,0.00019315,2]
[350309007,1737780690442,-3755.43,0.00019315,2]
[350309008,1737780690452,-783.97,0.00019315,2]
[350309009,1737780690462,-1669.05,0.00019315,2]
[350309010,1737780690471,-648.38,0.00019315,2]
[350309011,1737780690483,-880.32,0.00019315,2]
[350309012,1737780690494,-783.6,0.00019315,2]
[350309013,1737780690504,-541.22,0.00019315,2]
[350309014,1737780690513,-200.0,0.0001935,2]
[350309015,1737780690522,-631.42,0.00019376,2]
[350309016,1737780690535,-655.57,0.00019376,2]
[350309017,1737780690544,-883.17,0.00019376,2]
[350309018,1737780690554,-1126.94,0.00019376,2]
[350309019,1737780690563,-1212.78,0.00019376,2]
[350309020,1737780690572,-3128.26,0.00019376,2]
[350309021,1737780690582,-6082.89,0.00019376,2]
[350309022,1737780690591,-996.63,0.00019376,2]
[350309023,1737780690695,-770.51,0.00019376,2]
[350309024,1737780690705,-2173.77,0.00019376,2]
[350309025,1737780690715,-788.44,0.00019376,2]
[350309026,1737780690724,-1064.43,0.00019376,2]
[350309027,1737780690733,-1714.38,0.00019376,2]
[350309028,1737780690744,-1311.29,0.00019376,2]
[350309029,1737780690753,-544.74,0.00019376,2]
[350309030,1737780690763,-2088.26,0.00019376,2]
[350309031,1737780690772,-2022.35,0.00019376,2]
[350309032,1737780690781,-2840.96,0.000194,2]
[350309033,1737780690790,-513.63431958,0.00019417,2]
[350309034,1737780690800,-2000.0,0.0001942,2]
[350309035,1737780690809,-1876.2,0.0001942,2]
[350309036,1737780690818,-200.0,0.0001943,2]
[350309037,1737780690827,-592.79,0.00019451,2]
[350309038,1737780690837,-585.62,0.00019451,2]
[350309039,1737780690846,-694.69,0.00019451,2]
[350309040,1737780690855,-500.0,0.00019452,2]
[350309041,1737780690865,-500.0,0.00019452,2]
[350309042,1737780690874,-552.37,0.00019452,2]
[350309043,1737780690884,-746.74,0.00019452,2]
[350309044,1737780690893,-623.71,0.00019452,2]
[350309045,1737780690902,-560.1,0.00019452,2]
[350309046,1737780690911,-500.0,0.00019452,2]
[350309047,1737780690921,-156.187301,0.00019452,2]
[350309048,1737780690930,-531.14,0.00019452,2]
[350309049,1737780690939,-602.85,0.00019452,2]
[350309050,1737780690949,-163.487389,0.00019452,2]
[350309051,1737780690958,-594.18,0.00019452,2]
[350309052,1737780690967,-560.27,0.00019452,2]
[350309053,1737780690977,-562.5,0.00019452,2]
[350309054,1737780690987,-567.73,0.00019452,2]
[350309055,1737780690996,-550.16,0.00019452,2]
[350309056,1737780691006,-614.67,0.00019452,2]
[350309057,1737780691015,-186.34,0.00019452,2]
[350309058,1737780691024,-500.0,0.00019452,2]
[350309059,1737780691034,-666.81,0.00019452,2]
[350309060,1737780691043,-506.56,0.00019452,2]
[350309061,1737780691052,-594.67,0.00019452,2]
[350309062,1737780691064,-589.07,0.00019452,2]
[350309063,1737780691073,-500.0,0.00019452,2]
[350309064,1737780691083,-554.24,0.00019452,2]
[350309065,1737780691093,-914.03,0.00019452,2]
[350309066,1737780691103,-566.01,0.00019452,2]
[350309067,1737780691112,-728.54,0.00019452,2]
[350309068,1737780691122,-621.9,0.00019452,2]
[350309069,1737780691131,-2348.33,0.00019452,2]
[350309070,1737780691141,-3825.28,0.00019452,2]
[350309071,1737780691150,-1272.56,0.00019452,2]
[350309072,1737780691160,-903.33,0.00019452,2]
[350309073,1737780691169,-600.69,0.00019452,2]
[350309074,1737780691178,-2002.96,0.00019452,2]
[350309075,1737780691188,-1031.41,0.00019452,2]
[350309076,1737780691197,-155.907894,0.00019452,2]
[350309077,1737780691206,-1165.45,0.00019452,2]
[350309078,1737780691215,-811.7,0.00019452,2]
[350309079,1737780691224,-563.79,0.00019452,2]
[350309080,1737780691234,-2254.04,0.00019452,2]
[350309081,1737780691243,-810.68,0.00019452,2]
[350309082,1737780691252,-500.0,0.00019452,2]
[350309083,1737780691261,-768.27,0.00019452,2]
[350309084,1737780691270,-900.82,0.00019452,2]
[350309085,1737780691279,-1676.36,0.00019452,2]
[350309086,1737780691288,-1204.31,0.00019452,2]
[350309087,1737780691298,-1031.26,0.00019452,2]
[350309088,1737780691307,-160.16722,0.00019452,2]
[350309089,1737780691317,-588.61507666,0.00019452,2]
[350309090,1737780691327,-2605.78,0.00019452,2]
[350309091,1737780691336,-3652.55,0.00019452,2]
[350309092,1737780691346,-855.5,0.00019452,2]
[350309093,1737780691355,-887.32,0.00019452,2]
[350309094,1737780691364,-878.97,0.00019452,2]
[350309095,1737780691374,-2371.04,0.00019452,2]
[350309096,1737780691383,-1435.2,0.00019452,2]
[350309097,1737780691392,-1256.16,0.00019452,2]
[350309098,1737780691402,-859.23,0.00019452,2]
[350309099,1737780691411,-631.62,0.00019452,2]
[350309100,1737780691420,-2214.61,0.00019452,2]
[350309101,1737780691430,-1499.56,0.00019452,2]
[350309102,1737780691439,-501.66,0.00019452,2]
[350309103,1737780691448,-764.1,0.00019452,2]
[350309104,1737780691457,-4434.4,0.00019452,2]
[350309105,1737780691466,-880.26,0.00019452,2]
[350309106,1737780691485,-4770.01,0.00019452,2]
[350309107,1737780691501,-1286.41,0.00019452,2]
[350309108,1737780691519,-2525.92,0.00019452,2]
[350309109,1737780691540,-617.18,0.00019452,2]
[350309110,1737780691555,-1248.95,0.00019452,2]
[350309111,1737780691572,-1045.55,0.00019452,2]
[350309112,1737780691593,-912.61,0.00019452,2]
[350309113,1737780691612,-2347.72,0.00019452,2]
[350309114,1737780691629,-797.89,0.00019452,2]
[350309115,1737780691646,-2437.51,0.00019452,2]
[350309116,1737780691662,-1162.81,0.00019452,2]
[350309117,1737780691677,-729.49,0.00019452,2]
[350309118,1737780691695,-1527.98,0.00019452,2]
[350309119,1737780691707,-1904.23,0.00019452,2]
[350309120,1737780691727,-745.81,0.00019452,2]
[350309121,1737780691740,-596.99,0.00019452,2]
[350309122,1737780691756,-2478.55,0.00019452,2]
[350309123,1737780691771,-1748.83,0.00019452,2]
[350309124,1737780691787,-3070.29,0.00019452,2]
[350309125,1737780691801,-717.53,0.00019452,2]
[350309126,1737780691815,-893.72,0.00019452,2]
[350309127,1737780691830,-4503.34,0.00019452,2]
[350309128,1737780691845,-3662.54,0.00019452,2]
[350309129,1737780691861,-660.41,0.00019452,2]
[350309130,1737780691875,-830.75,0.00019452,2]
[350309131,1737780691889,-1628.53,0.00019452,2]
[350309132,1737780691904,-2784.54,0.00019452,2]
[350309133,1737780691919,-2066.06,0.00019452,2]
[350309134,1737780691935,-541.81,0.00019452,2]
[350309135,1737780691950,-735.03,0.00019452,2]
[350309136,1737780691964,-1358.49,0.00019452,2]
[350309137,1737780691979,-1231.6,0.00019452,2]
[350309138,1737780691993,-1298.51,0.00019452,2]
[350309139,1737780692007,-2450.52,0.00019452,2]
[350309140,1737780692022,-659.41,0.00019452,2]
[350309141,1737780692038,-3853.39,0.00019452,2]
[350309142,1737780692053,-964.84,0.00019452,2]
[350309143,1737780692066,-1262.53,0.00019452,2]
[350309144,1737780692079,-1240.26,0.00019452,2]
[350309145,1737780692093,-883.14,0.00019452,2]
[350309146,1737780692107,-783.95,0.00019452,2]
[350309147,1737780692119,-957.39,0.00019452,2]
[350309148,1737780692133,-791.69,0.00019452,2]
[350309149,1737780692151,-854.55,0.00019452,2]
[350309150,1737780692165,-1363.36,0.00019452,2]
[350309151,1737780692180,-500.0,0.00019452,2]
[350309152,1737780692193,-3755.43,0.00019452,2]
[350309153,1737780692207,-783.97,0.00019452,2]
[350309154,1737780692221,-1669.05,0.00019452,2]
[350309155,1737780692236,-648.38,0.00019452,2]
[350309156,1737780692250,-880.32,0.00019452,2]
[350309157,1737780692263,-783.6,0.00019452,2]
[350309158,1737780692278,-541.22,0.00019452,2]
[350309159,1737780692293,-200.0,0.00019497,2]
[350309160,1737780692307,-631.42,0.00019513,2]
[350309161,1737780692321,-655.57,0.00019513,2]
[350309162,1737780692335,-883.17,0.00019513,2]
[350309163,1737780692349,-1126.94,0.00019513,2]
[350309164,1737780692363,-1212.78,0.00019513,2]
[350309165,1737780692376,-3128.26,0.00019513,2]
[350309166,1737780692390,-6082.89,0.00019513,2]
[350309167,1737780692404,-996.63,0.00019513,2]
[350309168,1737780692418,-770.51,0.00019513,2]
[350309169,1737780692432,-2173.77,0.00019513,2]
[350309170,1737780692445,-788.44,0.00019513,2]
[350309171,1737780692458,-1064.43,0.00019513,2]
[350309172,1737780692472,-1714.38,0.00019513,2]
[350309173,1737780692486,-1311.29,0.00019513,2]
[350309174,1737780692498,-544.74,0.00019513,2]
[350309175,1737780692512,-2088.26,0.00019513,2]
[350309176,1737780692527,-2022.35,0.00019513,2]
[350309177,1737780692545,-592.79,0.00019588,2]
[350309178,1737780692559,-585.62,0.00019588,2]
[350309179,1737780692573,-694.69,0.00019588,2]
[350309180,1737780692587,-207.23995021,0.00019589,2]
[350309181,1737780692602,-352.22044858,0.00019589,2]
[350309182,1737780692616,-552.49670323,0.00019589,2]
[350309183,1737780692631,-746.95,0.00019589,2]
[350309184,1737780692646,-623.72059537,0.00019589,2]
[350309185,1737780692806,-560.28780091,0.00019589,2]
[350309186,1737780692820,-156.187301,0.00019589,2]
[350309187,1737780692831,-531.27850938,0.00019589,2]
[350309188,1737780692840,-602.89,0.00019589,2]
[350309189,1737780692851,-594.26,0.00019589,2]
[350309190,1737780692861,-560.44,0.00019589,2]
[350309191,1737780692871,-562.68,0.00019589,2]
[350309192,1737780692880,-567.75774906,0.00019589,2]
[350309193,1737780692890,-550.38,0.00019589,2]
[350309194,1737780692899,-614.86838676,0.00019589,2]
[350309195,1737780692909,-230.19,0.00019589,2]
[350309196,1737780692918,-666.99,0.00019589,2]
[350309197,1737780692927,-506.67,0.00019589,2]
[350309198,1737780692937,-594.88,0.00019589,2]
[350309199,1737780692946,-589.30037142,0.00019589,2]
[350309200,1737780692955,-378.75,0.00019589,2]
[350309201,1737780692964,-554.36094997,0.00019589,2]
[350309202,1737780692973,-914.08,0.00019589,2]
[350309203,1737780692982,-566.11,0.00019589,2]
[350309204,1737780692993,-728.65,0.00019589,2]
[350309205,1737780693002,-622.02,0.00019589,2]
[350309206,1737780693012,-2348.38161526,0.00019589,2]
[350309207,1737780693021,-3825.38108785,0.00019589,2]
[350309208,1737780693031,-1272.63001783,0.00019589,2]
[350309209,1737780693040,-903.44,0.00019589,2]
[350309210,1737780693049,-600.9,0.00019589,2]
[350309211,1737780693059,-2002.99956538,0.00019589,2]
[350309212,1737780693068,-1031.64930363,0.00019589,2]
[350309213,1737780693077,-1165.62468824,0.00019589,2]
[350309214,1737780693086,-811.74729577,0.00019589,2]
[350309215,1737780693095,-563.87,0.00019589,2]
[350309216,1737780693105,-2254.18967918,0.00019589,2]
[350309217,1737780693114,-810.7478761,0.00019589,2]
[350309218,1737780693123,-344.12795505,0.00019589,2]
[350309219,1737780693133,-768.31163302,0.00019589,2]
[350309220,1737780693142,-1676.41963375,0.00019589,2]
[350309221,1737780693152,-1204.34792834,0.00019589,2]
[350309222,1737780693161,-901.05537518,0.00019589,2]
[350309223,1737780693170,-1031.331699,0.00019589,2]
[350309224,1737780693180,-2605.82718188,0.00019589,2]
[350309225,1737780693189,-3652.75091225,0.00019589,2]
[350309226,1737780693199,-855.73599612,0.00019589,2]
[350309227,1737780693209,-887.4449749,0.00019589,2]
[350309228,1737780693219,-879.09111038,0.00019589,2]
[350309229,1737780693229,-2371.17965619,0.00019589,2]
[350309230,1737780693239,-1435.22525414,0.00019589,2]
[350309231,1737780693250,-1256.21691425,0.00019589,2]
[350309232,1737780693260,-859.32647298,0.00019589,2]
[350309233,1737780693270,-631.7232629,0.00019589,2]
[350309234,1737780693279,-2214.79300249,0.00019589,2]
[350309235,1737780693290,-1499.58055237,0.00019589,2]
[350309236,1737780693300,-501.79750888,0.00019589,2]
[350309237,1737780693309,-764.21057916,0.00019589,2]
[350309238,1737780693319,-4434.56081177,0.00019589,2]
[350309239,1737780693328,-880.43917574,0.00019589,2]
[350309240,1737780693338,-4770.01924517,0.00019589,2]
[350309241,1737780693347,-1286.60260942,0.00019589,2]
[350309242,1737780693356,-2526.11613129,0.00019589,2]
[350309243,1737780693365,-617.35484099,0.00019589,2]
[350309244,1737780693375,-1248.96150112,0.00019589,2]
[350309245,1737780693385,-1045.63490279,0.00019589,2]
[350309246,1737780693394,-912.74012138,0.00019589,2]
[350309247,1737780693404,-2347.84032332,0.00019589,2]
[350309248,1737780693414,-798.02398958,0.00019589,2]
[350309249,1737780693424,-2437.65320969,0.00019589,2]
[350309250,1737780693435,-1163.01372556,0.00019589,2]
[350309251,1737780693445,-729.65269286,0.00019589,2]
[350309252,1737780693454,-1528.04420091,0.00019589,2]
[350309253,1737780693464,-1904.30895514,0.00019589,2]
[350309254,1737780693474,-746.04631032,0.00019589,2]
[350309255,1737780693484,-597.16445221,0.00019589,2]
[350309256,1737780693494,-2478.71165048,0.00019589,2]
[350309257,1737780693505,-1748.96765814,0.00019589,2]
[350309258,1737780693517,-3070.50422505,0.00019589,2]
[350309259,1737780693527,-717.56162681,0.00019589,2]
[350309260,1737780693541,-893.72733735,0.00019589,2]
[350309261,1737780693550,-4503.49500566,0.00019589,2]
[350309262,1737780693560,-3662.70260725,0.00019589,2]
[350309263,1737780693569,-660.50916997,0.00019589,2]
[350309264,1737780693580,-830.9607294,0.00019589,2]
[350309265,1737780693589,-1628.5680022,0.00019589,2]
[350309266,1737780693598,-2784.75490231,0.00019589,2]
[350309267,1737780693608,-2066.25191651,0.00019589,2]
[350309268,1737780693619,-542.04,0.00019589,2]
[350309269,1737780693630,-735.26883423,0.00019589,2]
[350309270,1737780693641,-1358.59862405,0.00019589,2]
[350309271,1737780693651,-1231.78120989,0.00019589,2]
[350309272,1737780693662,-1298.51750102,0.00019589,2]
[350309273,1737780693672,-2450.64096015,0.00019589,2]
[350309274,1737780693681,-659.52339167,0.00019589,2]
[350309275,1737780693691,-3853.46273013,0.00019589,2]
[350309276,1737780693700,-964.85,0.00019589,2]
[350309277,1737780693710,-1262.72942296,0.00019589,2]
[350309278,1737780693719,-1240.26770238,0.00019589,2]
[350309279,1737780693729,-883.15500343,0.00019589,2]
[350309280,1737780693739,-784.15239896,0.00019589,2]
[350309281,1737780693749,-957.51376697,0.00019589,2]
[350309282,1737780693759,-791.72477516,0.00019589,2]
[350309283,1737780693769,-854.75225483,0.00019589,2]